bitfinex-derivatives/quotes_ETHF0:USTF0_20240901
["timestamp","ask_amount","ask_price","bid_price","bid_amount"]
[1725154442571,0.39938,2504.0,2503.6,4.03042755]
[1725154442776,0.3543,2504.2,2503.7,1.04399755]
[1725154442777,0.7202,2504.2,2503.7,1.04399755]
[1725154443081,4.2242297,2504.0,2503.8,1.04399755]
[1725154443272,4.6235997,2504.1,2503.8,1.04399755]
[1725154443478,0.39937,2504.1,2503.8,1.04399755]
[1725154443689,4.38798686,2504.0,2503.8,1.04399755]
[1725154444569,0.39939,2503.9,2503.7,1.04399755]
[1725154444964,0.39939,2504.0,2503.7,1.04399755]
[1725154445368,4.17586838,2503.9,2503.7,1.04399755]
[1725154446580,0.387,2503.8,2503.7,1.04399755]
[1725154447279,0.387,2503.8,2503.6,1.04399755]
[1725154447469,4.94037,2503.7,2503.5,0.00599125]
[1725154447777,4.86851672,2503.6,2503.5,0.00599125]
[1725154451491,8.86291672,2503.6,2503.5,0.00599125]
[1725154451689,14.86291672,2503.6,2503.5,0.00599125]
[1725154453079,8.86291672,2503.6,2503.5,0.00599125]
[1725154454388,12.07071672,2503.6,2503.5,0.00599125]
[1725154455685,19.06932672,2503.6,2503.5,0.00599125]
[1725154455880,0.39952,2503.2,2503.0,1.04399755]
[1725154456079,0.3907,2503.1,2503.0,1.04399755]
[1725154459792,0.60861543,2503.3,2503.0,1.04399755]
[1725154459990,0.60861543,2503.3,2503.1,0.3647]
[1725154460197,4.45556184,2503.2,2503.1,0.3647]
[1725154461393,4.45556184,2503.2,2503.1,1.40869755]
[1725154462096,4.45556184,2503.2,2503.1,0.3647]
[1725154462389,4.85506184,2503.2,2503.1,1.40869755]
[1725154462798,4.45556184,2503.2,2503.1,1.40869755]
[1725154463388,4.45556184,2503.2,2503.1,3.40702103]
[1725154464184,4.45556184,2503.2,2503.1,3.99489527]
[1725154464492,4.45556184,2503.2,2503.1,4.51065227]
[1725154467995,4.85506184,2503.2,2503.1,4.14595227]
[1725154468200,4.85506184,2503.2,2503.1,1.04565307]
[1725154470696,18.65733184,2503.2,2502.8,0.00599125]
[1725154470998,0.39955,2502.9,2502.8,0.00599125]
[1725154471393,8.85557326,2502.9,2502.8,0.00599125]
[1725154471796,9.23607326,2502.9,2502.8,0.00599125]
[1725154472210,12.44387326,2502.9,2502.8,0.00599125]
[1725154473207,9.23607326,2502.9,2502.8,0.00599125]
[1725154474910,15.23607326,2502.9,2502.8,0.00599125]
[1725154475113,0.99897,2502.7,2502.1,0.86565307]
[1725154475311,0.39963,2502.5,2501.9,4.51785455]
[1725154475621,4.46471934,2502.4,2502.0,3.95858093]
[1725154475823,4.46471934,2502.4,2502.0,1.95944455]
[1725154476027,4.46471934,2502.4,2502.0,1.55975455]
[1725154476217,4.46471934,2502.4,2501.9,4.5238458]
[1725154476417,4.46471934,2502.4,2502.0,1.99906695]
[1725154476618,0.39966,2502.3,2501.9,2.6841458]
[1725154476819,0.39967,2502.2,2501.9,2.6841458]
[1725154477128,0.39968,2502.1,2501.9,1.12439125]
[1725154477315,0.75798,2502.1,2501.9,0.36679125]
[1725154477623,4.63298785,2502.0,2501.9,0.36679125]
[1725154482125,9.68048785,2502.0,2501.9,0.00599125]
[1725154482421,13.67728785,2502.0,2501.9,0.00599125]
[1725154487524,10.46948785,2502.0,2501.9,0.00599125]
[1725154488529,13.67728785,2502.0,2501.9,0.00599125]
[1725154489526,10.46948785,2502.0,2501.9,0.00599125]
[1725154489827,13.67728785,2502.0,2501.9,0.00599125]
[1725154490529,10.46948785,2502.0,2501.9,0.00599125]
[1725154490730,13.67728785,2502.0,2501.9,0.00599125]
[1725154491728,10.46948785,2502.0,2501.9,0.00599125]
[1725154497240,16.46948785,2502.0,2501.9,0.00599125]
[1725154497440,16.86128785,2502.0,2501.9,0.00599125]
[1725154497637,17.86053785,2502.0,2501.9,0.00599125]
[1725154497837,16.6186784,2502.0,2501.9,0.00599125]
[1725154498032,18.0586784,2502.0,2501.9,0.00599125]
[1725154499241,0.39979,2501.5,2501.3,0.362]
[1725154499732,4.33676241,2501.4,2501.3,0.362]
[1725154499938,3.73682767,2501.4,2501.3,0.362]
[1725154500532,4.13661767,2501.4,2501.3,0.362]
[1725154500956,4.13661767,2501.4,2501.1,0.39089418]
[1725154500957,0.39982,2501.2,2501.1,0.39089418]
[1725154501240,1.83982,2501.2,2501.1,0.39089418]
[1725154501442,10.39322166,2501.2,2501.1,0.39089418]
[1725154501642,4.55500166,2501.2,2501.1,0.39089418]
[1725154502040,4.88784009,2501.3,2501.1,0.39089418]
[1725154502240,0.39981,2501.3,2501.1,0.39089418]
[1725154502542,4.19308469,2501.2,2501.1,0.39089418]
[1725154502736,4.19308469,2501.2,2501.1,0.79073418]
[1725154502941,4.19308469,2501.2,2501.1,4.78913418]
[1725154504343,4.19308469,2501.2,2501.1,4.38929418]
[1725154504642,4.19308469,2501.2,2501.1,0.39089418]
[1725154505641,4.62984455,2501.3,2501.1,0.39089418]
[1725154505845,1.83979,2501.4,2501.1,0.39089418]
[1725154505846,1.44,2501.4,2501.1,0.39089418]
[1725154506036,1.44,2501.2,2501.1,0.00399418]
[1725154506350,6.46966455,2501.2,2501.1,0.00399418]
[1725154506644,10.46806455,2501.2,2501.1,0.00399418]
[1725154507041,6.46966455,2501.2,2501.1,0.00399418]
[1725154507240,10.46806455,2501.2,2501.1,0.00399418]
[1725154507638,6.06984455,2501.2,2501.1,0.00399418]
[1725154507944,4.62984455,2501.2,2501.1,0.00399418]
[1725154508137,5.02966455,2501.2,2501.1,0.00399418]
[1725154508339,4.62984455,2501.2,2501.1,0.00399418]
[1725154508538,4.95661029,2501.3,2501.1,0.00399418]
[1725154508743,0.39981,2501.3,2501.1,0.00399418]
[1725154509150,4.55680029,2501.2,2501.1,0.00399418]
[1725154510739,4.55680029,2501.2,2501.1,0.40383418]
[1725154512741,0.00599125,2501.6,2501.4,0.39979]
[1725154512946,0.00599125,2501.6,2501.5,1.1452]
[1725154513347,4.24624708,2501.6,2501.5,1.1452]
[1725154514143,4.24624708,2501.6,2501.5,1.54498]
[1725154514344,4.24624708,2501.6,2501.5,5.54258]
[1725154515155,4.24624708,2501.6,2501.5,7.54200152]
[1725154515446,4.24624708,2501.6,2501.5,7.54201942]
[1725154515654,4.24624708,2501.6,2501.5,5.54258]
[1725154516246,4.24624708,2501.6,2501.5,9.1017593]
[1725154517256,4.24624708,2501.6,2501.5,5.1041593]
[1725154517556,4.24624708,2501.6,2501.5,5.10416046]
[1725154518149,4.24624708,2501.6,2501.5,3.54440591]
[1725154518555,4.24624708,2501.6,2501.5,4.13248531]
[1725154519057,4.24624708,2501.6,2501.5,4.13248669]
[1725154519353,4.24624708,2501.6,2501.5,6.21215942]
[1725154520253,4.24624708,2501.6,2501.5,10.2110048]
[1725154521958,4.24624708,2501.6,2501.5,9.8112248]
[1725154522154,4.24624708,2501.6,2501.5,10.21123247]
[1725154522448,4.24624708,2501.6,2501.5,14.20875528]
[1725154522654,0.19814055,2502.0,2501.5,21.76889347]
[1725154522849,0.19814055,2502.0,2501.9,1.96891381]
[1725154523040,0.19814055,2502.0,2501.9,3.96838773]
[1725154523243,4.58577521,2502.0,2501.9,3.96838773]
[1725154523644,0.39967,2502.2,2501.9,3.96838773]
[1725154523645,0.00599125,2502.2,2502.0,0.39969]
[1725154523849,0.00599125,2502.2,2502.0,1.96889381]
[1725154524052,4.22382113,2502.1,2502.0,1.96889381]
[1725154524252,4.22382113,2502.1,2502.0,3.9680444]
[1725154526654,4.22382113,2502.1,2502.0,4.55606971]
[1725154526862,4.22382113,2502.1,2502.0,3.9680444]
[1725154527346,4.22382113,2502.1,2502.0,3.5683544]
[1725154528167,6.06350113,2502.1,2502.0,1.99915059]
[1725154528356,6.06350113,2502.1,2501.8,1.56920381]
[1725154528357,9.66062113,2502.1,2501.8,1.56920381]
[1725154528558,1.83971,2501.9,2501.8,1.56920381]
[1725154528753,1.44,2501.9,2501.8,3.56864872]
[1725154529059,9.9102961,2501.9,2501.8,3.56864872]
[1725154530252,5.9134961,2501.9,2501.8,3.56864872]
[1725154534461,6.3132061,2501.9,2501.8,3.56864872]
[1725154534658,5.9134961,2501.9,2501.8,3.56864872]
[1725154535461,6.3132061,2501.9,2501.8,3.56864872]
[1725154535858,6.3132061,2501.9,2501.8,1.99944491]
[1725154536059,6.3132061,2501.9,2501.8,3.56864872]
[1725154536567,6.3132061,2501.9,2501.8,1.99944491]
[1725154536862,0.39973,2501.8,2501.7,1.56920381]
[1725154537061,4.39733,2501.8,2501.7,1.99955171]
[1725154537261,4.39733,2501.8,2501.5,5.71720381]
[1725154537262,8.63805316,2501.8,2501.5,5.71720381]
[1725154537461,1.44,2501.7,2501.5,5.71720381]
[1725154537661,0.7594,2501.6,2501.5,5.71720381]
[1725154537865,5.51789943,2501.6,2501.5,7.71685713]
[1725154538058,5.51789943,2501.6,2501.5,3.56885713]
[1725154538665,5.91765943,2501.6,2501.5,3.56885713]
[1725154539054,5.51789943,2501.6,2501.5,3.56885713]
[1725154542172,5.51789943,2501.6,2501.5,3.56885783]
[1725154543572,5.91765943,2501.6,2501.5,3.56885783]
[1725154544663,5.51789943,2501.6,2501.5,3.56885783]
[1725154547072,5.51789943,2501.6,2501.5,1.56920381]
[1725154547269,5.51789943,2501.6,2501.5,4.15697429]
[1725154547576,4.77329943,2501.6,2501.5,2.58777048]
[1725154549173,4.38579943,2501.6,2501.5,10.39608137]
[1725154549372,4.38579943,2501.6,2501.5,13.5837648]
[1725154549761,4.38579943,2501.6,2501.5,10.98417388]
[1725154550266,0.3997,2502.0,2501.7,0.39974]
[1725154550469,0.3997,2502.0,2501.8,4.27898724]
[1725154550676,4.42031389,2501.9,2501.8,2.63473972]
[1725154550880,4.42031389,2501.9,2501.8,4.63414484]
[1725154551370,4.42031389,2501.9,2501.8,3.92464484]
[1725154551573,4.42031389,2501.9,2501.8,2.35480512]
[1725154551574,6.26002389,2501.9,2501.8,2.35480512]
[1725154551870,5.86031389,2501.9,2501.8,1.99940512]
[1725154552060,1.44,2501.9,2501.8,0.7303]
[1725154552266,5.81005884,2501.9,2501.8,2.72976202]
[1725154553176,5.81005884,2501.9,2501.8,4.29960174]
[1725154555478,5.81005884,2501.9,2501.8,4.88768045]
[1725154555880,5.81005884,2501.9,2501.8,4.29960174]
[1725154556273,5.81005884,2501.9,2501.8,4.88768335]
[1725154556674,5.81005884,2501.9,2501.8,5.28741335]
[1725154556871,5.81005884,2501.9,2501.8,5.64841335]
[1725154557071,5.81005884,2501.9,2501.8,5.64836167]
[1725154557273,5.81005884,2501.9,2501.8,4.07852195]
[1725154557472,4.37005884,2501.9,2501.8,4.07852195]
[1725154558073,4.98191,2502.0,2501.8,3.31779195]
[1725154558284,5.72321,2502.0,2501.9,3.57080511]
[1725154559672,5.32351,2502.0,2501.9,3.57080511]
[1725154561183,5.32351,2502.0,2501.9,3.57083898]
[1725154561781,5.32351,2502.0,2501.9,4.15892196]
[1725154563075,5.72321,2502.0,2501.9,4.15892196]
[1725154563375,5.72321,2502.0,2501.9,1.99944421]
[1725154563376,9.72001,2502.0,2501.9,1.99944421]
[1725154565777,9.72001,2502.0,2501.9,1.99948854]
[1725154567075,9.72001,2502.0,2501.9,3.57088331]
[1725154567477,9.72001,2502.0,2501.9,1.99948854]
[1725154568584,8.96101,2502.0,2501.9,1.99948854]
[1725154568780,8.96101,2502.0,2501.9,3.57088331]
[1725154569176,4.58221,2502.0,2501.9,3.57088331]
[1725154569385,3.98243711,2502.0,2501.9,10.98254768]
[1725154569580,3.98243711,2502.0,2501.9,10.3353386]
[1725154569780,3.98243711,2502.0,2501.9,14.3321386]
[1725154570885,3.98243711,2502.0,2501.9,14.33185699]
[1725154571588,0.00599125,2502.2,2502.0,0.39968]
[1725154571883,0.00599125,2502.2,2502.1,4.68294725]
[1725154572091,0.00599125,2502.2,2502.1,5.04114725]
[1725154572683,0.00599125,2502.2,2502.1,2.94549413]
[1725154573994,0.00599125,2502.2,2502.1,2.94546709]
[1725154574789,0.00599125,2502.2,2502.1,2.35740393]
[1725154574984,0.00599125,2502.2,2502.1,2.94544611]
[1725154575782,0.00599125,2502.2,2502.1,2.94544612]
[1725154576590,4.36605909,2502.2,2502.1,2.94544612]
[1725154577284,4.36605909,2502.2,2502.1,4.5167982]
[1725154577685,4.36605909,2502.2,2502.1,4.51677829]
[1725154578285,4.36605909,2502.2,2502.1,4.51670231]
[1725154578487,4.36605909,2502.2,2502.1,2.94544612]
[1725154578689,4.36605909,2502.2,2502.1,4.51669827]
[1725154580193,4.36605909,2502.2,2502.1,4.91617981]
[1725154580399,4.36605909,2502.2,2502.1,3.34512612]
[1725154580601,4.36605909,2502.2,2502.1,4.91617402]
[1725154580784,4.36605909,2502.2,2502.1,8.91297402]
[1725154580987,4.2922,2503.0,2502.1,17.93957593]
[1725154581288,3.2078,2503.0,2502.9,1.97031513]
[1725154581481,4.6478,2503.0,2502.9,2.58713286]
[1725154581686,9.0058893,2503.0,2502.9,3.56898377]
[1725154581886,9.7260893,2503.0,2502.9,3.56898377]
[1725154582394,9.7260893,2503.0,2502.9,1.99920394]
[1725154583088,9.7260893,2503.0,2502.8,2.33527983]
[1725154584386,9.7260893,2503.0,2502.8,0.7655]
[1725154584700,9.0058893,2503.0,2502.8,0.7655]
[1725154585199,9.0058893,2503.0,2502.8,0.3883]
[1725154585399,0.3651,2502.9,2502.7,0.00599125]
[1725154585699,4.4890214,2502.8,2502.7,0.00599125]
[1725154586390,10.3245914,2502.8,2502.7,0.00599125]
[1725154586595,11.0664914,2502.8,2502.7,0.00599125]
[1725154587297,6.3285914,2502.8,2502.7,0.00599125]
[1725154587499,5.9290214,2502.8,2502.7,0.00599125]
[1725154588287,4.4890214,2502.8,2502.7,0.00599125]
[1725154588899,4.8885914,2502.8,2502.7,0.00599125]
[1725154589794,10.3245914,2502.8,2502.7,0.00599125]
[1725154590895,17.3235214,2502.8,2502.7,0.00599125]
[1725154591200,17.3235214,2502.8,2502.3,0.3704]
[1725154591201,0.39963,2502.4,2502.3,0.3704]
[1725154591602,4.60404115,2502.4,2502.3,0.3704]
[1725154592097,4.98414115,2502.4,2502.3,0.3704]
[1725154592488,4.98414115,2502.4,2502.1,0.00599125]
[1725154592489,9.34214115,2502.4,2502.1,0.00599125]
[1725154592694,5.34614115,2502.4,2502.1,0.00599125]
[1725154594204,0.39965,2502.3,2502.1,0.00599125]
[1725154594707,4.26944374,2502.2,2502.1,0.00599125]
[1725154596201,4.66910374,2502.2,2502.1,1.05078932]
[1725154596404,4.66910374,2502.2,2502.1,0.00599125]
[1725154596607,0.39966,2502.2,2502.1,0.00599125]
[1725154596806,0.39966,2502.2,2502.1,1.05078932]
[1725154596807,4.7531584,2502.2,2502.1,1.05078932]
[1725154598098,8.7499584,2502.2,2502.1,0.00599125]
[1725154599002,4.7531584,2502.2,2502.1,0.00599125]
[1725154600110,8.7499584,2502.2,2502.1,0.00599125]
[1725154601513,8.3502984,2502.2,2502.1,0.00599125]
[1725154601817,4.3534984,2502.2,2502.1,0.00599125]
[1725154602014,4.3534984,2502.2,2502.1,0.36629125]
[1725154602315,4.17492436,2502.3,2502.1,1.41108932]
[1725154602517,2.21974,2502.4,2502.2,0.7456]
[1725154602715,4.55853701,2502.3,2502.2,0.7456]
[1725154604517,4.55853701,2502.3,2502.2,2.19005807]
[1725154604711,4.55853701,2502.3,2502.2,8.18584952]
[1725154604922,1.44,2502.6,2502.3,0.39963]
[1725154605218,1.44,2502.6,2502.4,0.39963]
[1725154605423,4.34709879,2502.5,2502.4,0.39963]
[1725154605823,4.34709879,2502.5,2502.4,5.44076198]
[1725154608524,4.34709879,2502.5,2502.4,7.96425948]
[1725154610733,4.34709879,2502.5,2502.4,7.96421057]
[1725154612125,4.34709879,2502.5,2502.4,3.96821057]
[1725154612320,4.34709879,2502.5,2502.4,7.96421057]
[1725154612934,0.39958,2502.8,2502.5,0.39961]
[1725154613129,0.39958,2502.8,2502.6,1.04544666]
[1725154613432,0.39958,2502.8,2502.7,0.3812]
[1725154613835,4.62146479,2502.8,2502.7,0.3812]
[1725154614933,4.22188479,2502.8,2502.7,0.3812]
[1725154615234,4.62145479,2502.8,2502.7,0.3812]
[1725154616731,6.06145479,2502.8,2502.6,1.04544666]
[1725154617029,0.39958,2502.7,2502.5,1.04544666]
[1725154617329,6.04064248,2502.6,2502.5,1.04544666]
[1725154618529,6.04064248,2502.6,2502.5,3.04433608]
[1725154619834,6.04064248,2502.6,2502.5,1.99888942]
[1725154620538,6.04064248,2502.6,2502.5,3.56705941]
[1725154621230,6.04064248,2502.6,2502.5,3.04478818]
[1725154622535,6.04064248,2502.6,2502.5,1.04589876]
[1725154622838,6.04064248,2502.6,2502.5,3.04478437]
[1725154623044,6.04064248,2502.6,2502.5,1.04589876]
[1725154623338,6.04064248,2502.6,2502.5,3.04479071]
[1725154623731,6.04064248,2502.6,2502.5,3.56706194]
[1725154624040,6.04064248,2502.6,2502.5,1.99889195]
[1725154624239,6.04064248,2502.6,2502.5,1.99887778]
[1725154624432,6.04064248,2502.6,2502.5,3.56704777]
[1725154628239,4.60064248,2502.6,2502.5,3.56704777]
[1725154628535,4.60064248,2502.6,2502.5,3.92654777]
[1725154628743,4.60064248,2502.6,2502.5,4.91550146]
[1725154629040,4.60064248,2502.6,2502.5,3.34596467]
[1725154629242,4.60064248,2502.6,2502.5,3.34585553]
[1725154629446,4.00100966,2502.6,2502.5,3.34585553]
[1725154630741,4.00100966,2502.6,2502.5,2.94623553]
[1725154631043,4.00100966,2502.6,2502.5,2.58673553]
[1725154631237,4.75250966,2502.6,2502.5,2.58673553]
[1725154631428,4.75250966,2502.6,2502.5,4.15683157]
[1725154631626,4.75250966,2502.6,2502.5,2.58673553]
[1725154633440,4.75250966,2502.6,2502.5,2.58673786]
[1725154634240,4.75250966,2502.6,2502.5,2.5868459]
[1725154634445,5.15210966,2502.6,2502.5,4.15706135]
[1725154634646,5.15210966,2502.6,2502.5,2.5868459]
[1725154634838,5.15210966,2502.6,2502.5,3.5691327]
[1725154635036,5.15210966,2502.6,2502.5,4.15710774]
[1725154636345,4.75250966,2502.6,2502.5,4.15710774]
[1725154636639,5.15210966,2502.6,2502.5,4.15710774]
[1725154637041,9.14810966,2502.6,2502.5,4.15710774]
[1725154637245,9.14810966,2502.6,2502.5,3.04576684]
[1725154637246,10.58810966,2502.6,2502.5,3.04576684]
[1725154638445,13.79590966,2502.6,2502.5,1.04689016]
[1725154638933,0.39962,2502.5,2502.4,1.04689016]
[1725154639137,0.75582,2502.5,2502.4,1.04689016]
[1725154639338,5.17441818,2502.5,2502.4,1.04689016]
[1725154640647,15.76984818,2502.5,2502.3,0.41113743]
[1725154640846,0.39966,2502.2,2502.1,0.00599125]
[1725154641049,6.04663,2502.2,2502.1,0.00599125]
[1725154641249,21.09640592,2502.2,2502.1,0.00599125]
[1725154644046,21.09640592,2502.2,2502.1,1.25e-06]
[1725154647147,21.46264632,2502.2,2502.1,1.25e-06]
[1725154647654,14.09723592,2502.2,2502.1,1.25e-06]
[1725154648147,20.09723592,2502.2,2502.1,1.25e-06]
[1725154649147,12.65723592,2502.2,2502.1,1.25e-06]
[1725154649450,9.34223592,2502.2,2502.1,1.25e-06]
[1725154649656,8.94257592,2502.2,2502.1,1.25e-06]
[1725154649948,7.50257592,2502.2,2502.1,3.99680125]
[1725154650149,4.29477592,2502.2,2502.1,3.99680125]
[1725154652851,4.29477592,2502.2,2502.1,4.39648125]
[1725154653040,1.44,2502.7,2502.1,14.67707712]
[1725154653243,1.44,2502.7,2502.4,0.39963]
[1725154653439,4.37893386,2502.6,2502.5,1.0895]
[1725154658542,4.37893386,2502.6,2502.5,6.13032361]
[1725154661046,3.2078,2502.7,2502.5,6.13032361]
[1725154662549,3.2078,2502.7,2502.6,1.04482361]
[1725154662746,3.2078,2502.7,2502.6,3.04360358]
[1725154662948,3.2078,2502.7,2502.6,5.99477997]
[1725154663153,3.2078,2502.7,2502.6,5.04092162]
[1725154663347,3.2078,2502.7,2502.6,1.04492162]
[1725154663654,3.2078,2502.7,2502.6,5.04092162]
[1725154664651,1.44,2502.8,2502.6,5.04092162]
[1725154664957,4.5649345,2502.7,2502.6,1.04492162]
[1725154665651,4.5649345,2502.7,2502.6,5.04092162]
[1725154666958,4.5649345,2502.7,2502.6,1.04492162]
[1725154680170,4.9645145,2502.7,2502.6,1.04492162]
[1725154680360,0.3996,2502.6,2502.5,1.04492162]
[1725154680567,0.39962,2502.5,2502.4,1.04492162]
[1725154681066,4.60328192,2502.5,2502.4,1.04492162]
[1725154689471,4.00359455,2502.5,2502.4,1.04492162]
[1725154689678,4.40321455,2502.5,2502.4,3.04389577]
[1725154690064,4.40321455,2502.5,2502.4,1.04492162]
[1725154690269,4.40321455,2502.5,2502.4,3.04387458]
[1725154690468,4.40321455,2502.5,2502.4,1.99895296]
[1725154690776,4.40321455,2502.5,2502.4,3.04451104]
[1725154691276,9.83921455,2502.5,2502.4,1.04561704]
[1725154691471,0.39963,2502.4,2502.3,1.04561704]
[1725154691673,1.12543,2502.4,2502.3,1.04561704]
[1725154691873,9.54461235,2502.4,2502.3,1.04561704]
[1725154692475,9.54461235,2502.4,2502.1,4.14800125]
[1725154692476,9.14498235,2502.4,2502.1,4.14800125]
[1725154692678,9.54461235,2502.4,2502.3,1.04642566]
[1725154693672,0.39965,2502.3,2502.2,0.45842566]
[1725154693878,9.64373,2502.3,2502.1,1.25e-06]
[1725154694178,3.9968,2502.2,2502.1,1.25e-06]
[1725154694577,8.89580508,2502.2,2502.1,1.25e-06]
[1725154695578,10.33580508,2502.2,2502.1,1.25e-06]
[1725154696974,10.60610508,2502.2,2502.1,1.25e-06]
[1725154697172,16.60610508,2502.2,2502.1,1.25e-06]
[1725154698378,17.60527508,2502.2,2502.1,1.25e-06]
[1725154702277,16.60610508,2502.2,2502.1,1.25e-06]
[1725154702481,4.49934508,2502.2,2502.1,1.25e-06]
[1725154703284,4.49934508,2502.2,2502.1,0.38010125]
[1725154704085,4.49934508,2502.2,2502.1,4.37690125]
[1725154704380,1.44,2502.4,2502.1,4.77658125]
[1725154704578,1.44,2502.4,2502.1,0.77978125]
[1725154704771,4.21439965,2502.3,2502.1,0.77978125]
[1725154705176,4.21439965,2502.3,2502.1,4.77658125]
[1725154705787,4.21439965,2502.3,2502.1,0.38010125]
[1725154705983,5.65439965,2502.3,2502.1,0.38010125]
[1725154706290,6.05404965,2502.3,2502.1,0.38010125]
[1725154706482,0.39966,2502.2,2502.1,0.38010125]
[1725154706890,4.82334895,2502.2,2502.1,0.38010125]
[1725154708088,8.82014895,2502.2,2502.1,0.38010125]
[1725154712582,8.42048895,2502.2,2502.1,0.38010125]
[1725154712789,4.42368895,2502.2,2502.1,0.38010125]
[1725154713797,4.82334895,2502.2,2502.1,0.38010125]
[1725154716087,4.82334895,2502.2,2502.1,0.35990125]
[1725154716289,4.42368895,2502.2,2502.1,0.35990125]
[1725154718185,3.83548895,2502.2,2502.1,4.75638125]
[1725154718392,3.2078,2502.5,2502.3,0.39964]
[1725154718581,3.2078,2502.5,2502.4,0.3675]
[1725154718795,3.2078,2502.5,2502.4,0.7352]
[1725154718988,7.54892794,2502.5,2502.4,0.7352]
[1725154719491,7.54892794,2502.5,2502.4,1.13483]
[1725154720591,8.98892794,2502.5,2502.4,0.7352]
[1725154723492,8.98892794,2502.5,2502.4,0.3677]
[1725154725192,0.39963,2502.4,2502.3,1.56760901]
[1725154725385,0.39965,2502.3,2502.1,2.31711026]
[1725154725586,1.44,2502.2,2502.1,0.74950125]
[1725154725787,5.87708185,2502.2,2502.1,2.74874406]
[1725154726287,5.87708185,2502.2,2502.1,4.31635307]
[1725154726486,5.87708185,2502.2,2502.1,2.74874406]
[1725154727291,5.87708185,2502.2,2502.1,2.748744]
[1725154727488,5.87708185,2502.2,2502.1,0.74950125]
[1725154728494,5.87708185,2502.2,2501.9,1.57160319]
[1725154728691,0.39968,2502.1,2502.0,1.99935834]
[1725154728892,5.87708185,2502.2,2501.9,2.30940319]
[1725154728893,0.3997,2502.0,2501.9,2.30940319]
[1725154729082,0.3997,2502.0,2501.9,4.30876543]
[1725154729291,5.01119672,2502.0,2501.9,4.30876543]
[1725154729483,4.61149672,2502.0,2501.9,4.30876543]
[1725154730097,4.80929149,2502.0,2501.9,4.30876543]
[1725154730591,6.64899149,2502.0,2501.9,3.93346543]
[1725154730794,7.76629149,2502.0,2501.9,0.36649418]
[1725154731194,7.56849672,2502.0,2501.9,0.36649418]
[1725154731697,12.768898,2502.0,2501.9,0.00399418]
[1725154731993,11.769648,2502.0,2501.9,0.00399418]
[1725154733897,10.252648,2502.0,2501.9,0.00399418]
[1725154734199,10.252648,2502.0,2501.9,2.00341593]
[1725154734200,6.05149672,2502.0,2501.9,2.00341593]
[1725154735797,9.25929672,2502.0,2501.9,2.00341593]
[1725154736502,6.05149672,2502.0,2501.9,2.00341593]
[1725154736699,9.25929672,2502.0,2501.9,2.00341593]
[1725154737196,9.25929672,2502.0,2501.9,3.57102494]
[1725154737600,6.05149672,2502.0,2501.9,3.57102494]
[1725154737992,9.25929672,2502.0,2501.9,3.57102494]
[1725154738201,9.25929672,2502.0,2501.9,3.57099104]
[1725154738596,6.05149672,2502.0,2501.9,3.57099104]
[1725154738990,6.05149672,2502.0,2501.9,7.56779104]
[1725154738991,4.61149672,2502.0,2501.9,7.56779104]
[1725154739301,4.43479441,2502.1,2501.9,2.00338203]
[1725154739490,4.43479441,2502.1,2502.0,4.33908664]
[1725154739695,4.43479441,2502.1,2502.0,4.70998664]
[1725154740708,4.43479441,2502.1,2502.0,8.70678664]
[1725154740898,4.43479441,2502.1,2502.0,4.70998664]
[1725154741096,4.43479441,2502.1,2502.0,8.70678664]
[1725154741296,4.43479441,2502.1,2502.0,4.70998664]
[1725154742203,4.43479441,2502.1,2502.0,9.69452562]
[1725154742402,4.43479441,2502.1,2502.0,10.21779758]
[1725154743612,4.43479441,2502.1,2502.0,14.21610047]
[1725154743805,4.43479441,2502.1,2502.0,12.12282972]
[1725154744007,8.20381,2502.1,2501.9,0.00399418]
[1725154744210,7.99295,2502.0,2501.9,0.00399418]
[1725154744410,11.56419228,2502.0,2501.9,0.00399418]
[1725154744904,17.56419228,2502.0,2501.9,0.00399418]
[1725154745211,10.12419228,2502.0,2501.9,0.00399418]
[1725154745400,18.56344228,2502.0,2501.9,0.00399418]
[1725154745803,0.39979,2501.4,2501.3,1.57010084]
[1725154746107,0.39981,2501.3,2501.2,1.57010084]
[1725154746309,3.85981,2501.3,2501.2,1.99995718]
[1725154746507,11.94374159,2501.3,2501.2,1.99995718]
[1725154746706,11.94374159,2501.3,2501.1,1.57010084]
[1725154746902,7.94534159,2501.3,2501.1,1.57010084]
[1725154747310,7.94534159,2501.3,2500.9,4.77790084]
[1725154747311,0.39982,2501.2,2500.9,4.77790084]
[1725154747508,0.39982,2501.2,2500.9,3.2078]
[1725154747813,4.44440426,2501.1,2500.9,3.2078]
[1725154748415,0.39987,2500.9,2500.7,2.30730084]
[1725154748712,0.39987,2500.9,2500.7,0.3779]
[1725154748713,4.35609054,2500.8,2500.7,0.3779]
[1725154749501,3.75598592,2500.8,2500.7,0.3779]
[1725154751111,3.75598592,2500.8,2500.7,6.37729038]
[1725154751320,3.2078,2501.2,2500.7,14.34721492]
[1725154751501,3.46,2501.3,2500.7,0.3779]
[1725154751502,0.39989,2500.8,2500.7,0.3779]
[1725154751817,0.46814298,2500.8,2500.7,0.3779]
[1725154754219,0.86803298,2500.8,2500.7,0.3779]
[1725154754515,0.39989,2500.8,2500.7,0.3779]
[1725154754920,11.78606244,2500.8,2500.3,4.5262]
[1725154755218,0.39993,2500.6,2500.3,4.9173]
[1725154755617,4.52291011,2500.5,2500.3,4.9173]
[1725154756214,7.98291011,2500.5,2500.3,4.9173]
[1725154756710,8.38285011,2500.5,2500.3,4.9173]
[1725154757111,7.98291011,2500.5,2500.3,4.9173]
[1725154757511,7.98291011,2500.5,2500.3,9.31647]
[1725154757512,4.52291011,2500.5,2500.3,9.31647]
[1725154757713,4.52291011,2500.5,2500.3,9.69607]
[1725154757911,4.52291011,2500.5,2500.3,9.2961]
[1725154758417,4.52291011,2500.5,2500.3,5.1481]
[1725154758919,4.52291011,2500.5,2500.3,5.54807]
[1725154759418,4.52291011,2500.5,2500.4,0.39995]
[1725154759619,3.52275473,2500.5,2500.4,4.39915]
[1725154761526,3.52275473,2500.5,2500.3,1.1489]
[1725154761527,3.52275473,2500.5,2500.3,1.54887]
[1725154761916,3.52275473,2500.5,2500.3,5.54807]
[1725154763021,3.52275473,2500.5,2500.3,1.1489]
[1725154763229,0.39995,2500.4,2500.3,0.7693]
[1725154763515,4.98079527,2500.4,2500.0,7.28501]
[1725154763719,4.58084527,2500.4,2500.1,0.3686]
[1725154763913,4.98079527,2500.4,2500.1,0.7686]
[1725154764118,4.98079527,2500.4,2500.1,0.3686]
[1725154764119,0.39995,2500.4,2500.1,0.3686]
[1725154764324,4.42913291,2500.3,2500.1,0.3686]
[1725154765913,4.42913291,2500.3,2500.1,0.7686]
[1725154766314,4.13244386,2500.4,2500.1,0.7686]
[1725154766816,4.53240386,2500.4,2500.1,0.7686]
[1725154767212,0.39997,2500.3,2500.1,0.3686]
[1725154767414,4.90660145,2500.3,2500.1,0.3686]
[1725154767620,0.39998,2500.2,2500.1,0.3686]